bitfinex/quotes_SOLUSD_20220306
["timestamp","ask_amount","ask_price","bid_price","bid_amount"]
[1646574486497,6.20868679,88.139,88.09,17.0343]
[1646574486896,6.20868679,88.143,88.09,17.0343]
[1646574487099,5.674,88.142,88.09,17.0343]
[1646574487297,3.10707556,88.139,88.09,17.0343]
[1646574487502,3.10707556,88.137,88.09,17.0343]
[1646574487699,3.10707556,88.138,88.09,17.0343]
[1646574488901,3.10707556,88.14,88.09,17.0343]
[1646574489101,3.10707556,88.142,88.09,17.0343]
[1646574489301,3.10707556,88.132,88.09,17.0343]
[1646574490005,3.10707556,88.131,88.09,17.0343]
[1646574490201,3.10707556,88.131,88.091,116.93613526]
[1646574490402,6.20868679,88.13,88.1,17.0291]
[1646574490602,3.10707556,88.141,88.1,17.0291]
[1646574491403,3.10707556,88.138,88.1,17.0291]
[1646574491603,3.10707556,88.136,88.1,17.0291]
[1646574492104,9.31576235,88.136,88.1,17.0291]
[1646574492305,3.10707556,88.136,88.1,17.0291]
[1646574492604,6.20868679,88.148,88.1,17.0291]
[1646574492605,3.10707556,88.135,88.1,17.0291]
[1646574493306,3.10707556,88.137,88.1,17.0291]
[1646574493505,6.20868679,88.134,88.1,17.0291]
[1646574493708,3.10707556,88.137,88.1,17.0291]
[1646574494410,3.10707556,88.138,88.1,17.0291]
[1646574494610,6.20868679,88.136,88.1,17.0291]
[1646574494811,3.10707556,88.136,88.1,17.0291]
[1646574495004,3.10707556,88.135,88.1,17.0291]
[1646574495405,3.10707556,88.133,88.1,17.0291]
[1646574495809,3.10707556,88.133,88.101,2.83613526]
[1646574496007,3.10707556,88.133,88.11,17.0248]
[1646574496221,51.25420087,88.149,88.111,64.43725905]
[1646574496408,51.25420087,88.149,88.111,67.27339431]
[1646574496707,3.10707556,88.162,88.111,64.43725905]
[1646574496906,3.10707556,88.162,88.112,2.83613526]
[1646574497207,3.10707556,88.161,88.12,17.026]
[1646574497408,3.10707556,88.158,88.12,17.026]
[1646574498008,3.10707556,88.157,88.12,17.026]
[1646574498408,3.10707556,88.155,88.12,17.026]
[1646574498608,9.31335333,88.155,88.12,17.026]
[1646574498811,6.20627777,88.155,88.12,17.026]
[1646574500513,6.20627777,88.155,88.112,2.83613526]
[1646574500811,3.10707556,88.15,88.112,2.83613526]
[1646574501011,3.10707556,88.149,88.112,2.83613526]
[1646574501438,3.10707556,88.148,88.112,2.83613526]
[1646574501612,3.10707556,88.15,88.112,2.83613526]
[1646574502210,3.10707556,88.152,88.112,2.83613526]
[1646574503413,3.10707556,88.153,88.112,2.83613526]
[1646574503613,3.10707556,88.152,88.112,2.83613526]
[1646574504420,3.10707556,88.151,88.112,2.83613526]
[1646574505921,3.10707556,88.15,88.112,2.83613526]
[1646574506524,3.10707556,88.149,88.093,2.83613526]
[1646574506721,9.31335333,88.149,88.093,2.83613526]
[1646574506926,3.10707556,88.145,88.09,17.0344]
[1646574507123,3.10707556,88.142,88.09,17.0344]
[1646574507726,5.674,88.141,88.09,17.0344]
[1646574507923,6.20627777,88.14,88.09,17.0344]
[1646574508124,5.674,88.139,88.09,17.0344]
[1646574508322,6.20627777,88.138,88.09,17.0344]
[1646574508722,6.20627777,88.137,88.09,17.0344]
[1646574508940,6.20627777,88.139,88.09,17.0344]
[1646574509647,6.20627777,88.14,88.09,17.0344]
[1646574510446,6.20627777,88.14,88.091,2.83613526]
[1646574510742,6.20627777,88.14,88.1,17.0332]
[1646574511142,3.10707556,88.141,88.1,17.0332]
[1646574511343,1.54853926,88.118,88.1,17.0332]
[1646574512041,1.54853926,88.12,88.1,17.0332]
[1646574512242,1.54853926,88.121,88.1,17.0332]
[1646574512443,1.54853926,88.121,88.1,19.86933526]
[1646574513441,1.54853926,88.12,88.1,19.86933526]
[1646574513641,1.54853926,88.121,88.1,19.86933526]
[1646574514241,1.54853926,88.12,88.1,19.86933526]
[1646574515545,1.54853926,88.119,88.1,19.86933526]
[1646574516950,1.54853926,88.118,88.101,5.674]
[1646574517152,1.54853926,88.119,88.101,5.674]
[1646574518456,1.54853926,88.119,88.1,19.86933526]
[1646574518856,1.54853926,88.119,88.101,5.674]
[1646574519054,1.54853926,88.118,88.101,5.674]
[1646574521560,1.54853926,88.116,88.09,19.87113526]
[1646574521759,1.54853926,88.115,88.09,19.87113526]
[1646574523760,1.54853926,88.116,88.09,19.87113526]
[1646574524161,1.54853926,88.115,88.09,19.87113526]
[1646574524366,1.54853926,88.116,88.091,5.675]
[1646574524574,1.54853926,88.116,88.1,17.0317]
[1646574525162,1.54853926,88.115,88.1,17.0317]
[1646574525562,1.54853926,88.116,88.1,17.0317]
[1646574526864,6.20809386,88.139,88.1,17.0317]
[1646574526865,1.54853926,88.117,88.101,2.83613526]
[1646574527766,1.54853926,88.118,88.101,2.83613526]
[1646574527967,1.54853926,88.117,88.101,2.83613526]
[1646574528166,1.54853926,88.117,88.1,17.0317]
[1646574528868,1.54853926,88.114,88.1,17.0317]
[1646574529066,1.54853926,88.113,88.1,17.0317]
[1646574530170,1.54853926,88.112,88.1,17.0317]
[1646574530770,6.20798386,88.138,88.101,2.83613526]
[1646574530771,1.54853926,88.118,88.101,2.83613526]
[1646574530974,6.20798386,88.138,88.101,2.83613526]
[1646574530975,1.54853926,88.119,88.101,2.83613526]
[1646574531372,1.54853926,88.118,88.101,2.83613526]
[1646574531973,1.54853926,88.117,88.101,2.83613526]
[1646574533978,1.54853926,88.116,88.101,2.83613526]
[1646574534175,1.54853926,88.117,88.101,2.83613526]
[1646574534376,1.54853926,88.119,88.101,2.83613526]
[1646574534576,1.54853926,88.118,88.101,2.83613526]
[1646574535600,1.54853926,88.119,88.101,2.83613526]
[1646574535999,1.54853926,88.118,88.101,2.83613526]
[1646574537001,1.54853926,88.117,88.101,2.83613526]
[1646574537401,1.54853926,88.118,88.101,2.83613526]
[1646574537605,1.54853926,88.117,88.101,2.83613526]
[1646574538402,1.54853926,88.119,88.101,2.83613526]
[1646574538602,1.54853926,88.118,88.101,2.83613526]
[1646574538802,1.54853926,88.118,88.101,2.33613526]
[1646574540207,1.54853926,88.119,88.101,2.33613526]
[1646574541002,1.54853926,88.118,88.101,2.33613526]
[1646574541404,114.1,88.116,87.982,68.72]
[1646574541609,114.1,88.116,88.031,1.52196486]
[1646574541610,11.8506228,88.043,88.031,1.52196486]
[1646574541805,0.719018,88.042,87.991,1.52196486]
[1646574542206,1.54853926,88.033,87.954,1.52196486]
[1646574542404,1.54853926,88.026,87.955,58.422672]
[1646574542605,1.54853926,88.022,87.955,58.422672]
[1646574542807,1.54853926,88.015,87.956,114.1]
[1646574543004,1.54853926,88.016,87.961,114.1]
[1646574543205,1.54853926,88.015,87.961,114.1]
[1646574543405,13.39916206,88.043,87.961,114.1]
[1646574543808,5.681,88.042,87.96,17.0556]
[1646574544209,7.22953926,88.042,87.96,17.0556]
[1646574544408,13.39916206,88.043,87.961,68.72]
[1646574544610,13.39916206,88.043,87.981,68.72]
[1646574544807,13.39916206,88.043,87.982,122.43218403]
[1646574544808,11.8506228,88.043,87.982,122.43218403]
[1646574545011,11.8506228,88.043,87.983,114.1]
[1646574545311,11.8506228,88.043,87.983,127.89876592]
[1646574545511,11.8506228,88.043,87.99,17.0403]
[1646574545708,11.8506228,88.043,87.991,119.78]
[1646574545907,11.8506228,88.043,87.991,133.57876592]
[1646574546809,11.8506228,88.043,87.991,152.62407634]
[1646574547209,11.8506228,88.043,88.001,114.1]
[1646574547415,1.54853926,88.084,88.003,114.1]
[1646574547612,1.54853926,88.085,88.004,5.679]
[1646574548710,5.679,88.075,88.004,5.679]
[1646574548910,1.54853926,88.085,88.004,5.679]
[1646574549111,1.54853926,88.085,88.011,114.1]
[1646574549310,1.54853926,88.085,88.012,5.679]
[1646574549511,1.54853926,88.087,88.011,5.678]
[1646574549712,1.54853926,88.087,88.003,5.679]
[1646574550811,1.54853926,88.088,88.01,17.0458]
[1646574551013,5.679,88.087,88.01,17.0458]
[1646574551211,7.22753926,88.087,88.01,17.0458]
[1646574551412,1.54853926,88.087,88.01,17.0458]
[1646574551612,1.54853926,88.087,88.011,5.679]
[1646574551814,1.54853926,88.088,88.011,5.679]
[1646574552011,1.54853926,88.088,88.021,48.27298161]
[1646574552213,1.54853926,88.088,88.022,5.678]
[1646574553018,1.54853926,88.089,88.022,5.678]
[1646574553313,1.54853926,88.088,88.022,5.678]
[1646574553517,1.54853926,88.088,88.022,119.778]
[1646574553815,1.54853926,88.088,88.03,17.0427]
[1646574554215,1.04853926,88.089,88.03,17.0427]
[1646574554420,22.5369,88.104,88.03,17.0427]
[1646574554619,5.676,88.103,88.03,17.0427]
[1646574554825,22.5369,88.104,88.031,5.676]
[1646574555625,22.5369,88.104,88.04,17.04]
[1646574555819,5.676,88.114,88.042,114.1]
[1646574556019,3.10707556,88.13,88.043,5.676]
[1646574556222,3.10707556,88.13,88.045,114.1]
[1646574556421,6.20940988,88.137,88.046,5.676]
[1646574556619,49.1267,88.138,88.046,5.676]
[1646574556821,6.20912549,88.136,88.046,5.676]
[1646574557022,6.20912549,88.137,88.046,5.676]
[1646574557220,6.20912549,88.137,88.061,114.1]
[1646574557419,6.20912549,88.137,88.063,61.08955943]
[1646574557620,3.10707556,88.147,88.064,119.775]
[1646574558020,3.10707556,88.146,88.064,119.775]
[1646574558421,3.10707556,88.147,88.064,119.775]
[1646574558622,3.10707556,88.146,88.064,119.775]
[1646574559023,3.10707556,88.147,88.064,5.675]
[1646574559221,3.10707556,88.147,88.077,53.49610656]
[1646574559422,5.674,88.146,88.077,53.49610656]
[1646574559623,3.10707556,88.147,88.078,5.674]
[1646574560223,3.10707556,88.148,88.078,5.674]
[1646574560423,3.10707556,88.148,88.08,17.0333]
[1646574561025,3.10707556,88.148,88.078,5.674]
[1646574561225,3.10707556,88.143,88.045,5.674]
[1646574561447,3.10707556,88.141,88.045,5.674]
[1646574561624,5.675,88.14,88.045,5.674]
[1646574561826,3.10707556,88.138,88.045,5.674]
[1646574562025,3.10707556,88.137,88.046,63.26457826]
[1646574562226,3.10707556,88.137,88.06,17.0369]
[1646574562427,6.20888211,88.139,88.062,160.13794927]
[1646574562629,6.20888211,88.139,88.063,5.675]
[1646574564234,6.20888211,88.139,88.07,17.0342]
[1646574564434,6.20888211,88.139,88.071,5.675]
[1646574564633,6.20888211,88.139,88.063,5.675]
[1646574564835,5.675,88.138,88.062,46.03794927]
[1646574565237,6.20888211,88.137,88.07,17.0355]
[1646574565434,5.675,88.136,88.07,17.0355]
[1646574565637,6.20888211,88.135,88.07,17.0355]
[1646574565836,5.675,88.134,88.07,17.0355]
[1646574566039,6.20888211,88.133,88.07,17.0355]
[1646574566236,5.675,88.132,88.07,17.0355]
[1646574566536,6.20888211,88.131,88.07,17.0355]
[1646574567138,3.10707556,88.136,88.07,17.0355]
[1646574567740,5.675,88.135,88.07,17.0355]
[1646574567937,6.20888211,88.134,88.07,17.0355]
[1646574568139,5.675,88.133,88.07,17.0355]
[1646574568439,6.20888211,88.132,88.07,17.0355]
[1646574568642,5.675,88.131,88.07,17.0355]
[1646574568840,6.20888211,88.13,88.07,17.0355]
[1646574569054,5.675,88.129,88.07,17.0355]
[1646574569255,6.20888211,88.128,88.07,17.0355]
[1646574569458,5.675,88.127,88.071,114.1]
[1646574569657,5.675,88.127,88.081,59.31840595]
[1646574569858,6.20913941,88.126,88.081,59.31840595]
[1646574570056,3.10707556,88.133,88.081,59.31840595]
[1646574570455,6.20913941,88.132,88.081,59.31840595]
[1646574570855,3.10707556,88.133,88.081,59.31840595]
[1646574571058,6.20913941,88.131,88.081,59.31840595]
[1646574571259,3.10707556,88.133,88.081,59.31840595]
[1646574572960,3.10707556,88.132,88.081,59.31840595]
[1646574573160,5.674,88.131,88.081,59.31840595]
[1646574573361,3.10707556,88.126,88.081,59.31840595]
[1646574574164,3.10707556,88.127,88.081,59.31840595]
[1646574574362,3.10707556,88.132,88.081,59.31840595]
[1646574574563,3.10707556,88.133,88.081,59.31840595]
[1646574574764,3.10707556,88.132,88.081,59.31840595]
[1646574574962,3.10707556,88.13,88.081,59.31840595]
[1646574575161,3.10707556,88.129,88.081,59.31840595]
[1646574575362,3.10707556,88.128,88.081,59.31840595]
[1646574575663,3.10707556,88.13,88.081,59.31840595]
[1646574575862,3.10707556,88.128,88.081,59.31840595]
[1646574576064,3.10707556,88.128,88.07,17.0357]
[1646574576266,3.10707556,88.127,88.07,17.0357]
[1646574576865,3.10707556,88.126,88.07,17.0357]
[1646574577063,3.10707556,88.126,88.071,56.63108568]
[1646574579365,3.10707556,88.124,88.071,56.63108568]
[1646574579566,3.10707556,88.125,88.071,56.63108568]
[1646574580068,3.10707556,88.124,88.08,17.0339]
[1646574580269,9.31621497,88.124,88.08,17.0339]
[1646574580467,3.10707556,88.124,88.08,17.0339]
[1646574580867,3.10707556,88.125,88.08,17.0339]
[1646574581467,3.10707556,88.128,88.08,17.0339]
[1646574581668,6.20913941,88.124,88.08,17.0339]
[1646574581867,3.10707556,88.126,88.08,17.0339]
[1646574582068,3.10707556,88.127,88.08,17.0339]
[1646574582869,3.10707556,88.126,88.08,17.0339]
[1646574583270,3.10707556,88.123,88.08,17.0339]
[1646574583773,3.10707556,88.123,88.071,56.63108568]
[1646574583969,3.10707556,88.12,88.071,56.63108568]
[1646574585270,3.10707556,88.118,88.071,56.63108568]
[1646574585471,3.10707556,88.117,88.071,56.63108568]
[1646574585670,3.10707556,88.109,88.071,56.63108568]
[1646574587875,3.10707556,88.108,88.071,56.63108568]
[1646574588276,3.10707556,88.109,88.071,56.63108568]
[1646574588880,3.10707556,88.109,88.08,17.0343]
[1646574594686,3.10707556,88.109,88.071,56.63108568]
[1646574594887,3.10707556,88.108,88.071,56.63108568]
[1646574595087,3.10707556,88.109,88.071,56.63108568]
[1646574598104,3.10707556,88.109,88.08,17.034]
[1646574598305,3.10707556,88.109,88.071,56.63108568]
[1646574600707,3.10707556,88.109,88.08,17.0342]
[1646574600908,6.20913941,88.126,88.08,17.0342]
[1646574600909,3.10707556,88.112,88.08,17.0342]
[1646574601107,3.10707556,88.114,88.08,17.0342]
[1646574604917,3.10707556,88.114,88.072,5.675]
[1646574605318,3.10707556,88.114,88.061,23.7976]
[1646574605522,3.10707556,88.111,87.986,17.1511]
[1646574605823,3.10707556,88.096,87.997,68.72]
[1646574606022,3.10707556,88.091,88.014,52.32534283]
[1646574606228,3.10707556,88.091,88.03,17.0438]
[1646574606420,3.10707556,88.091,88.031,45.65028303]
[1646574607220,3.10707556,88.09,88.031,45.65028303]
[1646574607422,3.10707556,88.09,88.032,5.676]
[1646574608022,3.10707556,88.09,88.016,24.0085]
[1646574608023,3.10707556,88.088,88.017,5.676]
[1646574608321,0.48789371,88.08,87.996,23.7563]
[1646574608523,6.20913941,88.079,87.997,24.0085]
[1646574608723,3.10707556,88.076,87.997,24.0085]
[1646574608922,29.2179,88.075,87.998,5.679]
[1646574609121,3.10707556,88.073,87.998,5.679]
[1646574609324,5.679,88.072,87.998,5.679]
[1646574609524,6.20913941,88.071,87.998,5.679]
[1646574609722,5.679,88.07,87.998,5.679]
[1646574609921,3.10707556,88.074,87.998,5.679]
[1646574609922,6.20913941,88.069,87.998,5.679]
[1646574610122,6.20913941,88.069,88.0,17.0512]
[1646574610123,5.679,88.068,88.0,17.0512]
[1646574610324,8.78607556,88.068,88.0,17.0512]
[1646574610623,6.20913941,88.067,88.0,17.0512]
[1646574610826,5.679,88.066,88.0,17.0512]
[1646574611025,5.679,88.069,88.001,64.33941333]
[1646574612225,5.679,88.069,88.01,17.0495]
[1646574614528,5.679,88.069,88.002,5.679]
[1646574614729,17.0519,88.06,87.991,5.679]
[1646574614931,29.452,88.059,87.971,5.68]
[1646574615325,29.452,88.059,87.971,24.72531042]
[1646574615525,29.452,88.059,87.972,54.64388521]
[1646574615725,29.452,88.059,87.99,67.27511409]
[1646574615928,29.452,88.059,87.99,17.0531]
[1646574619632,17.054,88.05,87.982,5.68]
[1646574619838,5.37197151,88.048,87.965,5.68]
[1646574620033,5.37197151,88.048,87.891,112.1]
[1646574620034,29.01056001,88.047,87.94,29.4944]
[1646574620231,35.22615127,88.047,87.94,48.53971042]
[1646574620432,6.21559126,88.046,87.94,48.53971042]
[1646574620632,6.18306001,88.045,87.941,46.48296966]
[1646574620834,5.682,88.045,87.942,5.682]
[1646574621033,5.682,88.046,87.942,5.682]
[1646574621234,17.0616,88.03,87.95,17.0608]
[1646574621458,5.682,88.029,87.951,5.682]
[1646574621636,5.682,88.029,87.943,5.682]
[1646574621837,22.8285,88.028,87.943,5.682]
[1646574622133,22.8285,88.028,87.944,36.95748182]
[1646574622337,22.8285,88.028,87.96,17.0588]
[1646574622534,22.8285,88.028,87.961,51.78895793]
[1646574624137,22.8285,88.028,87.97,17.0568]
[1646574624338,22.8285,88.028,87.971,5.681]
[1646574625138,22.8285,88.028,87.98,17.0548]
[1646574625339,22.8285,88.028,87.981,55.14216595]
[1646574625742,4.38073158,88.026,87.887,57.29]
[1646574625939,0.48187876,88.025,87.91,45.3711]
[1646574626341,17.0598,88.02,87.93,17.0642]
[1646574626544,114.1,88.027,87.93,17.0642]
[1646574626545,5.683,88.019,87.93,17.0642]
[1646574626740,5.683,88.019,87.921,22.7302]
[1646574626741,5.683,88.019,87.931,170.72357434]
[1646574626941,3.10707556,88.04,87.931,210.55532819]
[1646574627140,3.10707556,88.043,87.933,114.1]
[1646574627342,28.5115,88.028,87.932,42.55551042]
[1646574628142,17.0599,88.02,87.95,17.0578]
[1646574628343,17.0599,88.02,87.951,62.46937896]
[1646574629268,5.682,88.019,87.951,62.46937896]
[1646574629475,5.682,88.019,87.96,17.0587]
[1646574630971,5.682,88.019,87.951,62.46937896]
[1646574631571,17.0621,88.01,87.951,62.46937896]
[1646574631771,5.683,88.009,87.951,62.46937896]
[1646574631969,17.0621,88.01,87.951,62.46937896]
[1646574632574,5.683,88.009,87.951,62.46937896]
[1646574633573,5.683,88.016,87.951,62.46937896]
[1646574634572,5.683,88.016,87.95,17.0606]
[1646574634573,131.1618,88.01,87.95,17.0606]
[1646574634772,5.683,88.009,87.932,22.7302]
[1646574634972,0.38233621,88.008,87.932,22.7302]
[1646574635176,5.683,88.007,87.932,22.7302]
[1646574635372,5.683,88.009,87.932,22.7302]
[1646574635573,5.683,88.015,87.932,22.7302]
[1646574635772,5.683,88.015,87.933,61.74743773]
[1646574636173,17.0617,88.01,87.94,17.0626]
[1646574636373,5.683,88.009,87.94,17.0626]
[1646574638976,17.0638,88.0,87.94,17.0626]
[1646574639176,5.683,87.999,87.94,17.0626]
[1646574642883,5.683,88.009,87.94,17.0626]
[1646574643782,6.21663822,88.008,87.94,17.0626]
[1646574643989,5.683,88.007,87.94,17.0626]
[1646574644190,24.1064,88.006,87.94,17.0626]
[1646574644391,11.89963822,88.005,87.94,17.0626]
[1646574644795,6.21663822,88.004,87.94,17.0626]
[1646574644989,5.683,88.003,87.94,17.0626]
[1646574645190,6.21663822,88.002,87.94,17.0626]
[1646574645492,5.683,88.001,87.94,17.0626]
[1646574645990,5.683,88.005,87.94,17.0626]
[1646574646188,17.0636,88.0,87.933,61.74743773]
[1646574646390,5.683,87.999,87.932,22.7302]
[1646574646689,6.59640416,87.998,87.932,22.7302]
[1646574646889,0.52787056,87.996,87.932,22.7302]
[1646574647089,114.62787056,87.994,87.9,56.8825]
[1646574647290,114.62787056,87.992,87.911,23.0747]
[1646574647491,5.684,87.991,87.912,56.247122]
[1646574647690,120.31775074,87.99,87.912,56.247122]
[1646574647893,35.12405074,87.989,87.92,17.0665]
[1646574648093,28.9063,87.989,87.92,17.0665]
[1646574649893,6.21776209,87.988,87.92,17.0665]
[1646574650092,5.684,87.987,87.92,17.0665]
[1646574650598,5.684,87.988,87.92,17.0665]
[1646574653700,17.0677,87.98,87.92,17.0665]
[1646574653901,5.684,87.979,87.92,17.0665]
[1646574654501,5.684,87.979,87.911,23.0747]
[1646574654704,22.5022,87.978,87.911,23.0747]
[1646574654902,17.0694,87.97,87.911,23.0747]
[1646574655101,5.684,87.969,87.911,23.0747]
[1646574655502,5.684,87.969,87.912,51.85385655]
[1646574657602,17.0694,87.97,87.911,23.0747]
[1646574658404,131.1694,87.97,87.891,5.685]
[1646574658602,131.1694,87.97,87.87,56.9034]
[1646574658603,17.0754,87.95,87.882,56.96625903]
[1646574658803,0.42430301,87.948,87.882,56.96625903]
[1646574659103,0.42430301,87.948,87.871,22.5217]
[1646574659306,126.00805095,87.947,87.871,22.5217]
[1646574659508,0.51183087,87.946,87.871,22.5217]
[1646574659706,4.04836427,87.938,87.871,22.5217]
[1646574659907,0.51183087,87.935,87.871,22.5217]
[1646574660104,5.688,87.934,87.871,22.5217]
[1646574660404,0.58452244,87.934,87.867,47.48137021]
[1646574660710,131.1783,87.93,87.867,47.48137021]
[1646574660904,5.688,87.929,87.867,47.48137021]
[1646574661309,23.5747,87.937,87.868,5.688]
[1646574661707,23.5747,87.937,87.869,24.9652]
[1646574661906,23.5747,87.937,87.87,22.7653]
[1646574662307,23.5747,87.937,87.87,17.0773]
[1646574662933,5.688,87.936,87.87,17.0773]
[1646574663336,4.688,87.936,87.87,17.0773]
[1646574664535,4.688,87.936,87.87,22.7653]
[1646574664735,4.79975758,87.935,87.841,22.5217]
[1646574664935,0.37494009,87.934,87.842,23.9842]
[1646574665434,0.50017934,87.931,87.842,23.9842]
[1646574665635,0.50017934,87.928,87.843,64.39421266]
[1646574665840,17.081,87.91,87.85,17.0811]
[1646574666035,24.6088,87.909,87.843,64.39421266]
[1646574666236,5.689,87.908,87.844,5.689]
[1646574666637,5.689,87.908,87.842,23.9842]
[1646574667038,17.0829,87.9,87.842,23.9842]
[1646574667635,5.689,87.908,87.842,23.9842]
[1646574669339,17.0832,87.9,87.841,22.5217]
[1646574669543,29.3821,87.899,87.841,22.5217]
[1646574669740,23.6921,87.899,87.841,22.5217]
[1646574670343,17.0849,87.89,87.841,22.5217]
[1646574671344,17.0849,87.89,87.841,79.37599251]
[1646574671545,5.69,87.898,87.841,79.37599251]
[1646574673249,5.69,87.898,87.85,17.0818]
[1646574673953,23.6921,87.899,87.85,17.0818]
[1646574674358,23.6921,87.899,87.841,79.37599251]
[1646574674654,23.6921,87.899,87.841,22.5217]
[1646574675550,5.69,87.898,87.841,22.5217]
[1646574675750,5.69,87.898,87.842,61.32286961]
[1646574675954,1.54172357,87.916,87.85,17.0818]
[1646574676352,1.54172357,87.914,87.85,17.0818]
[1646574676552,5.689,87.913,87.85,17.0818]
[1646574676753,114.1,87.907,87.842,5.689]
[1646574676952,114.1,87.907,87.822,23.2324]
[1646574676953,114.1,87.899,87.822,23.2324]
[1646574677155,118.26815108,87.889,87.822,23.2324]
[1646574677354,114.1,87.887,87.822,23.2324]
[1646574677555,114.1,87.885,87.822,23.2324]
[1646574677756,114.1,87.883,87.822,23.2324]
[1646574677953,24.4211,87.888,87.819,55.84161002]
[1646574677954,114.1,87.881,87.819,55.84161002]
[1646574678153,0.4607217,87.879,87.791,5.691]
[1646574678354,17.0898,87.87,87.81,17.0896]
[1646574679155,5.692,87.869,87.81,17.0896]
[1646574679555,5.692,87.869,87.793,5.692]
[1646574679556,17.0911,87.86,87.793,5.692]
[1646574679757,23.5312,87.859,87.8,17.0915]
[1646574679959,23.5312,87.859,87.801,5.692]
[1646574680561,23.5312,87.859,87.802,62.90588081]
[1646574680757,23.5312,87.859,87.803,5.692]
[1646574680957,17.093,87.85,87.8,17.0915]
[1646574682159,5.692,87.849,87.792,24.8644]
[1646574682362,28.7129,87.849,87.791,5.692]
[1646574682560,0.38557164,87.848,87.791,5.692]
[1646574682766,5.692,87.847,87.791,5.692]
[1646574682963,5.692,87.848,87.791,5.692]
[1646574684461,23.0209,87.849,87.791,5.692]
[1646574684861,23.0209,87.849,87.782,24.1959]
[1646574685461,5.692,87.848,87.8,17.0912]
[1646574686564,5.692,87.848,87.79,17.0928]
[1646574687361,5.692,87.848,87.782,24.1959]
[1646574687362,5.692,87.848,87.791,60.63735975]
[1646574687562,17.0946,87.84,87.791,60.63735975]
[1646574687862,5.692,87.839,87.791,60.63735975]
[1646574688062,23.0209,87.849,87.791,60.63735975]
[1646574688063,5.692,87.848,87.791,60.63735975]
[1646574689061,5.692,87.848,87.782,24.1959]
[1646574690163,5.692,87.848,87.783,55.08072029]
[1646574691265,5.692,87.848,87.79,17.0927]
[1646574694366,1.54172357,87.843,87.79,17.0927]
[1646574694566,5.692,87.842,87.79,17.0927]
[1646574694766,5.692,87.843,87.79,17.0927]
[1646574695171,1.54172357,87.845,87.791,114.1]
[1646574695368,1.54172357,87.836,87.8,17.0822]
[1646574695571,1.54172357,87.853,87.801,114.1]
[1646574695768,1.54172357,87.853,87.802,23.6593]
[1646574695969,1.54172357,87.854,87.802,42.27907676]
[1646574696171,1.54172357,87.856,87.802,64.54838718]
[1646574696371,1.54172357,87.856,87.81,17.0805]
[1646574696593,1.54172357,87.856,87.811,56.30450751]
[1646574697090,1.54172357,87.857,87.811,56.30450751]
[1646574697289,1.54172357,87.857,87.812,24.1759]
[1646574697688,1.54172357,87.858,87.812,24.1759]
[1646574697890,1.54172357,87.86,87.812,24.1759]
[1646574698094,1.54172357,87.861,87.82,17.0863]
[1646574698590,1.54172357,87.856,87.82,17.0863]
[1646574699089,1.54172357,87.857,87.82,17.0863]
[1646574699293,1.54172357,87.858,87.82,17.0863]
[1646574699690,1.54172357,87.86,87.82,17.0863]
[1646574700691,1.54172357,87.857,87.82,17.0863]
[1646574700892,1.54172357,87.858,87.82,17.0863]
[1646574701089,1.54172357,87.857,87.82,17.0863]
[1646574701289,1.54172357,87.858,87.82,17.0863]
[1646574701493,1.54172357,87.855,87.82,17.0863]
[1646574702491,1.54172357,87.856,87.82,17.0863]
[1646574702691,1.54172357,87.855,87.82,17.0863]
[1646574702893,1.54172357,87.857,87.82,17.0863]
[1646574703295,1.54172357,87.858,87.82,17.0863]
[1646574704504,1.54172357,87.847,87.82,17.0863]
[1646574705097,1.54172357,87.848,87.82,17.0863]
[1646574705498,1.54172357,87.849,87.82,17.0863]
[1646574705699,1.54172357,87.852,87.82,17.0863]
[1646574706799,1.54172357,87.853,87.82,17.0863]
[1646574707401,1.54172357,87.854,87.82,17.0863]
[1646574707601,1.54172357,87.851,87.82,17.0863]
[1646574708004,1.54172357,87.853,87.82,17.0863]
[1646574708402,1.54172357,87.854,87.82,17.0863]